fUST/lending_fUST_20260118
["ID","MTS","AMOUNT","RATE_DAILY","PERIOD"]
[402450555,1768679476373,-1219.11,0.00017808,3]
[402450557,1768679476382,-500.0,0.00017808,3]
[402450559,1768679476392,-500.0,0.00017808,3]
[402450561,1768679476401,-500.0,0.00017808,3]
[402450563,1768679476411,-716.42,0.00017808,3]
[402450565,1768679476420,-500.0,0.00017808,3]
[402450567,1768679476430,-500.0,0.00017808,3]
[402450569,1768679476439,-828.42,0.00017808,3]
[402450571,1768679476448,-500.0,0.00017808,3]
[402450573,1768679476458,-1549.77,0.00017808,3]
[402450575,1768679476467,-1973.46,0.00017808,3]
[402450577,1768679476476,-1689.4,0.00017808,3]
[402450579,1768679476485,-1151.7,0.00017808,3]
[402450581,1768679476495,-500.0,0.00017808,3]
[402450583,1768679476504,-1119.45,0.00017808,3]
[402450585,1768679476514,-608.13,0.00017808,3]
[402450587,1768679476523,-1042.67,0.00017808,3]
[402450589,1768679476533,-500.0,0.00017808,3]
[402450591,1768679476542,-452.01774869,0.00017808,3]
[402450593,1768679476551,-500.0,0.00017808,3]
[402450595,1768679476561,-500.0,0.00017808,3]
[402450597,1768679476571,-2245.47,0.00017808,3]
[402450599,1768679476581,-500.0,0.00017808,3]
[402450601,1768679476590,-500.0,0.00017808,3]
[402450603,1768679476599,-500.0,0.00017808,3]
[402450605,1768679476608,-1377.29,0.00017808,3]
[402450607,1768679476618,-611.27,0.00017808,3]
[402450609,1768679476627,-500.0,0.00017808,3]
[402450611,1768679476636,-566.4,0.00017808,3]
[402450613,1768679476645,-272.32832549,0.00017808,3]
[402450615,1768679476655,-500.0,0.00017808,3]
[402450617,1768679476664,-1322.2,0.00017808,3]
[402450619,1768679476674,-658.43,0.00017808,3]
[402450621,1768679476684,-1008.67,0.00017808,3]
[402450623,1768679476693,-500.0,0.00017808,3]
[402450625,1768679476702,-1081.56,0.00017808,3]
[402450627,1768679476711,-500.0,0.00017808,3]
[402450629,1768679476720,-792.81,0.00017808,3]
[402450631,1768679476730,-500.0,0.00017808,3]
[402450633,1768679476739,-500.0,0.00017808,3]
[402450635,1768679476749,-634.45,0.00017808,3]
[402450637,1768679476759,-1290.02,0.00017808,3]
[402450639,1768679476769,-500.0,0.00017808,3]
[402450641,1768679476779,-500.0,0.00017808,3]
[402450644,1768679476789,-500.0,0.00017808,3]
[402450646,1768679476798,-649.46,0.00017808,3]
[402450648,1768679476807,-629.85,0.00017808,3]
[402450650,1768679476817,-1795.72,0.00017808,3]
[402450652,1768679476826,-500.0,0.00017808,3]
[402450655,1768679476846,-500.0,0.00017808,3]
[402450657,1768679476858,-500.0,0.00017808,3]
[402450659,1768679476870,-511.27,0.00017808,3]
[402450661,1768679476880,-704.12,0.00017808,3]
[402450664,1768679476891,-500.0,0.00017808,3]
[402450666,1768679476901,-1121.71,0.00017808,3]
[402450668,1768679476911,-7250.78,0.00017808,3]
[402450670,1768679476921,-500.0,0.00017808,3]
[402450672,1768679476931,-500.0,0.00017808,3]
[402450674,1768679476941,-500.0,0.00017808,3]
[402450676,1768679476951,-911.63,0.00017808,3]
[402450678,1768679476961,-723.29,0.00017808,3]
[402450680,1768679476972,-500.0,0.00017808,3]
[402450682,1768679476982,-653.32,0.00017808,3]
[402450684,1768679476992,-500.0,0.00017808,3]
[402450686,1768679477002,-500.0,0.00017808,3]
[402450688,1768679477012,-1012.62,0.00017808,3]
[402450690,1768679477022,-759.12,0.00017808,3]
[402450692,1768679477032,-655.23,0.00017808,3]
[402450695,1768679477043,-1773.96,0.00017808,3]
[402450697,1768679477054,-874.59,0.00017808,3]
[402450699,1768679477065,-782.71,0.00017808,3]
[402450701,1768679477075,-900.31,0.00017808,3]
[402450703,1768679477085,-500.0,0.00017808,3]
[402450705,1768679477095,-500.0,0.00017808,3]
[402450707,1768679477105,-500.0,0.00017808,3]
[402450709,1768679477115,-500.0,0.00017808,3]
[402450711,1768679477125,-511.29,0.00017808,3]
[402450713,1768679477135,-848.01,0.00017808,3]
[402450715,1768679477145,-500.0,0.00017808,3]
[402450717,1768679477155,-1511.46,0.00017808,3]
[402450719,1768679477165,-719.22,0.00017808,3]
[402450720,1768679477175,-795.56,0.00017808,3]
[402450721,1768679477184,-515.67,0.00017808,3]
[402450722,1768679477194,-710.26,0.00017808,3]
[402450723,1768679477204,-488.07553798,0.00017808,3]
[402450724,1768679477213,-500.0,0.00017808,3]
[402450725,1768679477223,-500.0,0.00017808,3]
[402450726,1768679477233,-500.0,0.00017808,3]
[402450727,1768679477243,-1473.49,0.00017808,3]
[402450728,1768679477257,-1563.16,0.00017808,3]
[402450729,1768679477267,-500.0,0.00017808,3]
[402450730,1768679477277,-500.0,0.00017808,3]
[402450731,1768679477286,-500.0,0.00017808,3]
[402450732,1768679477295,-500.0,0.00017808,3]
[402450733,1768679477305,-3137.86,0.00017808,3]
[402450734,1768679477318,-1184.71,0.00017808,3]
[402450735,1768679477327,-1035.74,0.00017808,3]
[402450737,1768679477337,-500.0,0.00017808,3]
[402450738,1768679477347,-500.0,0.00017808,3]
[402450739,1768679477357,-680.48,0.00017808,3]
[402450740,1768679477367,-500.0,0.00017808,3]
[402450742,1768679477377,-500.0,0.00017808,3]
[402450744,1768679477387,-500.0,0.00017808,3]
[402450746,1768679477396,-1220.42,0.00017808,3]
[402450748,1768679477406,-500.0,0.00017808,3]
[402450750,1768679477416,-500.0,0.00017808,3]
[402450752,1768679477425,-587.95,0.00017808,3]
[402450754,1768679477435,-738.3,0.00017808,3]
[402450756,1768679477445,-972.61,0.00017808,3]
[402450758,1768679477454,-500.0,0.00017808,3]
[402450760,1768679477464,-932.18,0.00017808,3]
[402450762,1768679477475,-1068.39,0.00017808,3]
[402450764,1768679477484,-696.43,0.00017808,3]
[402450766,1768679477494,-981.27,0.00017808,3]
[402450768,1768679477504,-823.6,0.00017808,3]
[402450770,1768679477514,-500.0,0.00017808,3]
[402450772,1768679477526,-500.0,0.00017808,3]
[402450774,1768679477536,-500.0,0.00017808,3]
[402450776,1768679477546,-764.36,0.00017808,3]
[402450778,1768679477555,-1646.11,0.00017808,3]
[402450780,1768679477565,-640.0,0.00017808,3]
[402450782,1768679477575,-1443.1,0.00017808,3]
[402450784,1768679477585,-609.57,0.00017808,3]
[402450786,1768679477595,-1057.92,0.00017808,3]
[402450788,1768679477605,-960.29,0.00017808,3]
[402450790,1768679477616,-500.0,0.00017808,3]
[402450792,1768679477625,-500.0,0.00017808,3]
[402450794,1768679477635,-13777.2,0.00017808,3]
[402450796,1768679477645,-1418.84,0.00017808,3]
[402450798,1768679477654,-500.0,0.00017808,3]
[402450800,1768679477669,-500.0,0.00017808,3]
[402450802,1768679477679,-500.0,0.00017808,3]
[402450804,1768679477689,-1057.38,0.00017808,3]
[402450807,1768679477699,-842.34,0.00017808,3]
[402450809,1768679477710,-500.0,0.00017808,3]
[402450811,1768679477720,-500.0,0.00017808,3]
[402450813,1768679477730,-500.0,0.00017808,3]
[402450815,1768679477742,-500.0,0.00017808,3]
[402450817,1768679477751,-646.41,0.00017808,3]
[402450819,1768679477762,-1795.66,0.00017808,3]
[402450821,1768679477771,-1032.71,0.00017808,3]
[402450823,1768679477781,-633.31,0.00017808,3]
[402450825,1768679477791,-1068.17,0.00017808,3]
[402450827,1768679477801,-500.0,0.00017808,3]
[402450829,1768679477811,-552.62,0.00017808,3]
[402450831,1768679477820,-500.0,0.00017808,3]
[402450833,1768679477830,-1307.71,0.00017808,3]
[402450835,1768679477839,-500.0,0.00017808,3]
[402450837,1768679477849,-789.82,0.00017808,3]
[402450839,1768679477858,-500.0,0.00017808,3]
[402450841,1768679477868,-1340.94,0.00017808,3]
[402450843,1768679477878,-1311.65,0.00017808,3]
[402450845,1768679477888,-500.0,0.00017808,3]
[402450847,1768679477898,-1232.14,0.00017808,3]
[402450849,1768679477908,-1005.27,0.00017808,3]
[402450851,1768679477919,-765.27,0.00017808,3]
[402450853,1768679477929,-500.0,0.00017808,3]
[402450855,1768679477939,-500.0,0.00017808,3]
[402450857,1768679477949,-2348.06,0.00017808,3]
[402450859,1768679477959,-517.36,0.00017808,3]
[402450861,1768679477969,-2776.89,0.00017808,3]
[402450863,1768679477979,-500.0,0.00017808,3]
[402450865,1768679477990,-1504.2,0.00017808,3]
[402450867,1768679478001,-500.0,0.00017808,3]
[402450870,1768679478012,-500.0,0.00017808,2]
[402450872,1768679478021,-500.0,0.00017808,3]
[402450873,1768679478032,-500.0,0.00017808,3]
[402450876,1768679478042,-500.0,0.00017808,3]
[402450878,1768679478053,-500.0,0.00017808,3]
[402450913,1768679478401,-500.0,0.00017808,3]
[402450917,1768679478428,-500.0,0.00017808,3]
[402450919,1768679478437,-648.09,0.00017808,3]
[402450921,1768679478447,-500.0,0.00017808,2]
[402450923,1768679478456,-500.0,0.00017808,3]
[402450924,1768679478465,-1152.08,0.00017808,3]
[402450926,1768679478475,-1273.97,0.00017808,3]
[402450928,1768679478486,-1266.1,0.00017808,3]
[402450931,1768679478496,-500.0,0.00017808,3]
[402450932,1768679478505,-500.0,0.00017808,3]
[402450934,1768679478514,-500.0,0.00017808,3]
[402450936,1768679478524,-687.93,0.00017808,3]
[402450938,1768679478534,-154.96887616,0.00017808,3]
[402450940,1768679478544,-500.0,0.00017808,3]
[402450942,1768679478553,-532.35,0.00017808,3]
[402450944,1768679478563,-500.0,0.00017808,3]
[402450946,1768679478572,-500.0,0.00017808,3]
[402450948,1768679478582,-638.39,0.00017808,3]
[402450950,1768679478591,-500.0,0.00017808,3]
[402450952,1768679478600,-1194.29,0.00017808,3]
[402450954,1768679478610,-500.0,0.00017808,3]
[402450956,1768679478620,-500.0,0.00017808,3]
[402450958,1768679478630,-500.0,0.00017808,3]
[402450960,1768679478640,-500.0,0.00017808,3]
[402450962,1768679478649,-507.79,0.00017808,3]
[402450964,1768679478659,-1199.46,0.00017808,3]
[402450966,1768679478669,-1113.02,0.00017808,3]
[402450969,1768679478679,-500.0,0.00017808,3]
[402450971,1768679478690,-500.0,0.00017808,3]
[402450973,1768679478700,-500.0,0.00017841,2]
[402450975,1768679478709,-718.0,0.0001798,2]
[402450977,1768679478719,-152129.62492152,0.00018,2]
[402450979,1768679478728,-28166.53084422,0.00018,5]
[402450981,1768679478738,-500.33991656,0.00018,2]
[402450983,1768679478748,-503.0,0.00018011,2]
[402450984,1768679478757,-168.0,0.00018012,2]
[402450987,1768679478767,-155.0,0.00018081,2]
[402450988,1768679478777,-500.0,0.00018082,2]
[402450991,1768679478787,-343.79172969,0.00018082,3]
[402450993,1768679478798,-500.0,0.00018082,3]
[402450995,1768679478808,-500.0,0.00018082,3]
[402450997,1768679478817,-1139.03,0.00018082,3]
[402450999,1768679478827,-500.0,0.00018082,3]
[402451001,1768679478836,-500.68,0.00018082,3]
[402451003,1768679478845,-891.03,0.00018082,3]
[402451005,1768679478854,-500.0,0.00018082,3]
[402451007,1768679478864,-563.370629,0.00018082,7]
[402451009,1768679478875,-500.0,0.00018082,3]
[402451011,1768679478885,-500.0,0.00018082,3]
[402451013,1768679478895,-527.89049915,0.00018082,3]
[402451015,1768679478904,-500.0,0.00018082,3]
[402451017,1768679478914,-500.0,0.00018082,3]
[402451019,1768679478924,-500.0,0.00018082,3]
[402451021,1768679478934,-500.0,0.00018082,3]
[402451023,1768679478944,-500.0,0.00018082,3]
[402451025,1768679478954,-500.0,0.00018082,3]
[402451027,1768679478964,-993.81,0.00018082,3]
[402451029,1768679478974,-1347.64,0.00018082,3]
[402451031,1768679478983,-696.42,0.00018082,3]
[402451033,1768679478994,-500.0,0.00018082,3]
[402451034,1768679479006,-633.62,0.00018082,3]
[402451036,1768679479016,-500.0,0.00018082,3]
[402451038,1768679479026,-645.22,0.00018082,3]
[402451040,1768679479036,-506.33,0.00018082,3]
[402451042,1768679479046,-500.0,0.00018082,3]
[402451044,1768679479056,-500.0,0.00018082,3]
[402451046,1768679479066,-500.0,0.00018082,3]
[402451048,1768679479076,-1262.56,0.00018082,3]
[402451051,1768679479086,-500.0,0.00018082,3]
[402451053,1768679479097,-500.0,0.00018082,3]
[402451055,1768679479107,-500.0,0.00018082,3]
[402451057,1768679479118,-500.0,0.00018082,3]
[402451059,1768679479127,-1321.04,0.00018082,3]
[402451061,1768679479136,-500.0,0.00018082,3]
[402451063,1768679479148,-682.86,0.00018082,3]
[402451065,1768679479158,-500.0,0.00018082,3]
[402451067,1768679479167,-637.08,0.00018082,3]
[402451069,1768679479177,-796.7,0.00018082,3]
[402451071,1768679479187,-500.0,0.00018082,3]
[402451072,1768679479198,-679.17,0.00018082,3]
[402451074,1768679479208,-718.32,0.00018082,3]
[402451076,1768679479217,-500.0,0.00018082,3]
[402451078,1768679479227,-500.0,0.00018082,3]
[402451080,1768679479238,-872.29,0.00018082,3]
[402451082,1768679479249,-561.82,0.00018082,3]
[402451084,1768679479261,-500.0,0.00018082,3]
[402451087,1768679479271,-942.6,0.00018082,3]
[402451089,1768679479280,-1254.55,0.00018082,3]
[402451090,1768679479290,-500.0,0.00018082,3]
[402451092,1768679479300,-500.0,0.00018082,3]
[402451094,1768679479309,-500.0,0.00018082,3]
[402451096,1768679479319,-656.32,0.00018082,3]
[402451098,1768679479328,-500.0,0.00018082,3]
[402451100,1768679479338,-500.0,0.00018082,3]
[402451102,1768679479347,-500.0,0.00018082,3]
[402451105,1768679479358,-500.0,0.00018082,3]
[402451107,1768679479367,-500.0,0.00018082,3]
[402451109,1768679479377,-797.42,0.00018082,3]
[402451111,1768679479386,-881.58,0.00018082,3]
[402451113,1768679479395,-1020.76,0.00018082,3]
[402451114,1768679479405,-500.0,0.00018082,3]
[402451116,1768679479415,-500.0,0.00018082,3]
[402451117,1768679479423,-500.0,0.00018082,3]
[402451118,1768679479432,-1057.49,0.00018082,3]
[402451119,1768679479441,-1420.1,0.00018082,3]
[402451120,1768679479451,-884.75,0.00018082,3]
[402451121,1768679479460,-500.0,0.00018082,3]
[402451122,1768679479469,-500.0,0.00018082,3]
[402451123,1768679479478,-500.0,0.00018082,3]
[402451124,1768679479487,-847.44,0.00018082,3]
[402451125,1768679479496,-500.0,0.00018082,3]
[402451126,1768679479505,-500.0,0.00018082,3]
[402451127,1768679479515,-290.99920964,0.00018082,3]
[402451128,1768679479524,-1228.47,0.00018082,3]
[402451129,1768679479533,-500.0,0.00018082,3]
[402451130,1768679479545,-606.9,0.00018082,3]
[402451131,1768679479554,-500.0,0.00018082,3]
[402451132,1768679479563,-177.20904933,0.00018082,3]
[402451133,1768679479572,-736.96,0.00018082,3]
[402451134,1768679479581,-545.22,0.00018082,3]
[402451135,1768679479590,-727.09,0.00018082,3]
[402451136,1768679479599,-500.0,0.00018082,3]
[402451137,1768679479608,-1634.12,0.00018082,3]
[402451138,1768679479617,-595.35,0.00018082,3]
[402451139,1768679479626,-521.41015728,0.00018082,3]
[402451140,1768679479635,-500.0,0.00018082,3]
[402451141,1768679479644,-500.0,0.00018082,3]
[402451142,1768679479653,-500.0,0.00018082,3]
[402451143,1768679479662,-1317.95,0.00018082,3]
[402451144,1768679479671,-718.42,0.00018082,3]
[402451145,1768679479680,-500.0,0.00018082,3]
[402451146,1768679479689,-1449.09,0.00018082,3]
[402451147,1768679479697,-759.73,0.00018082,3]
[402451148,1768679479707,-500.0,0.00018082,3]
[402451149,1768679479716,-500.0,0.00018082,3]
[402451150,1768679479725,-500.0,0.00018082,3]
[402451152,1768679479735,-1291.04,0.00018082,3]
[402451153,1768679479744,-623.12,0.00018082,3]
[402451155,1768679479754,-631.17,0.00018082,3]
[402451156,1768679479763,-1196.65,0.00018082,3]
[402451158,1768679479772,-761.06,0.00018082,3]
[402451160,1768679479781,-500.0,0.00018082,3]
[402451162,1768679479791,-609.24,0.00018082,3]
[402451164,1768679479800,-500.0,0.00018082,3]
[402451166,1768679479810,-500.0,0.00018082,3]
[402451169,1768679479819,-901.7,0.00018082,3]
[402451171,1768679479829,-1140.39,0.00018082,3]
[402451173,1768679479839,-500.0,0.00018082,3]
[402451175,1768679479849,-500.0,0.00018082,3]
[402451177,1768679479858,-576.16,0.00018082,3]
[402451178,1768679479868,-511.75,0.00018082,3]
[402451180,1768679479877,-680.68,0.00018082,3]
[402451182,1768679479887,-500.0,0.00018082,3]
[402451184,1768679479896,-1548.48,0.00018082,3]
[402451186,1768679479906,-500.0,0.00018082,3]
[402451188,1768679479916,-734.72,0.00018082,3]
[402451190,1768679479925,-1329.58,0.00018082,3]
[402451192,1768679479935,-500.0,0.00018082,3]
[402451194,1768679479944,-1126.25,0.00018082,3]
[402451196,1768679479954,-539.06,0.00018082,3]
[402451198,1768679479963,-500.0,0.00018082,3]
[402451200,1768679479973,-701.32,0.00018082,3]
[402451202,1768679479983,-1192.97,0.00018082,3]
[402451204,1768679479992,-500.0,0.00018082,3]
[402451206,1768679480002,-500.0,0.00018082,3]
[402451208,1768679480012,-727.1,0.00018082,3]
[402451210,1768679480022,-781.78,0.00018082,3]
[402451212,1768679480032,-592.22,0.00018082,3]
[402451214,1768679480041,-500.0,0.00018082,3]
[402451216,1768679480051,-500.0,0.00018082,3]
[402451218,1768679480060,-537.93,0.00018082,3]
[402451220,1768679480069,-1258.39,0.00018082,3]
[402451222,1768679480079,-571.8,0.00018082,3]
[402451224,1768679480090,-605.99,0.00018082,3]
[402451226,1768679480100,-500.0,0.00018082,3]
[402451229,1768679480111,-1201.55,0.00018082,3]
[402451231,1768679480120,-500.0,0.00018082,3]
[402451233,1768679480130,-500.0,0.00018082,3]
[402451235,1768679480139,-500.0,0.00018082,3]
[402451237,1768679480149,-500.0,0.00018082,3]
[402451239,1768679480159,-500.0,0.00018082,3]
[402451241,1768679480170,-500.0,0.00018082,3]
[402451243,1768679480180,-873.03,0.00018082,3]
[402451245,1768679480189,-500.0,0.00018082,3]
[402451247,1768679480198,-1442.06,0.00018082,3]
[402451249,1768679480207,-500.0,0.00018082,3]
[402451251,1768679480220,-500.0,0.00018082,3]
[402451253,1768679480229,-829.64,0.00018082,3]
[402451255,1768679480238,-500.0,0.00018082,3]
[402451257,1768679480248,-1626.68,0.00018082,3]
[402451259,1768679480261,-500.0,0.00018082,3]
[402451261,1768679480270,-500.0,0.00018082,3]
[402451263,1768679480280,-500.0,0.00018082,3]
[402451265,1768679480290,-617.5,0.00018082,3]
[402451267,1768679480300,-500.0,0.00018082,3]
[402451269,1768679480309,-500.0,0.00018082,3]
[402451271,1768679480318,-500.0,0.00018082,3]
[402451273,1768679480328,-681.42,0.00018082,3]
[402451275,1768679480338,-837.21,0.00018082,3]
[402451277,1768679480347,-500.0,0.00018082,3]
[402451279,1768679480357,-708.61,0.00018082,3]
[402451281,1768679480366,-500.0,0.00018082,3]
[402451283,1768679480375,-500.0,0.00018082,3]
[402451285,1768679480384,-500.0,0.00018082,3]
[402451287,1768679480394,-305.2620146,0.00018082,3]
[402451289,1768679480403,-500.0,0.00018082,3]
[402451291,1768679480413,-511.63,0.00018082,3]
[402451293,1768679480423,-698.16,0.00018082,3]
[402451295,1768679480432,-500.0,0.00018082,3]
[402451297,1768679480441,-1168.98,0.00018082,3]
[402451299,1768679480450,-500.0,0.00018082,3]
[402451301,1768679480459,-500.0,0.00018082,3]
[402451303,1768679480468,-500.0,0.00018082,3]
[402451305,1768679480478,-500.0,0.00018082,3]
[402451307,1768679480487,-832.03,0.00018082,3]
[402451309,1768679480497,-822.62,0.00018082,3]
[402451311,1768679480506,-1486.24,0.00018082,3]
[402451313,1768679480516,-964.65,0.00018082,3]
[402451315,1768679480525,-525.2,0.00018082,3]
[402451317,1768679480535,-500.0,0.00018082,3]
[402451319,1768679480545,-502.19,0.00018082,3]
[402451321,1768679480555,-663.28,0.00018082,3]
[402451323,1768679480564,-848.63,0.00018082,3]
[402451325,1768679480574,-500.0,0.00018082,3]
[402451327,1768679480583,-500.0,0.00018082,3]
[402451329,1768679480593,-500.0,0.00018082,3]
[402451331,1768679480603,-500.0,0.00018082,3]
[402451333,1768679480612,-1697.38,0.00018082,3]
[402451335,1768679480622,-837.92,0.00018082,3]
[402451337,1768679480631,-1459.89,0.00018082,3]
[402451339,1768679480640,-618.81,0.00018082,3]
[402451341,1768679480649,-500.0,0.00018082,3]
[402451343,1768679480660,-883.57,0.00018082,3]
[402451345,1768679480669,-857.65,0.00018082,3]
[402451347,1768679480678,-500.0,0.00018082,3]
[402451349,1768679480688,-500.0,0.00018082,3]
[402451351,1768679480697,-500.0,0.00018082,3]
[402451353,1768679480707,-500.0,0.00018082,3]
[402451355,1768679480716,-500.0,0.00018082,3]
[402451357,1768679480726,-1535.26,0.00018082,3]
[402451359,1768679480735,-500.0,0.00018082,3]
[402451361,1768679480744,-987.57,0.00018082,3]
[402451363,1768679480754,-218.42017606,0.00018082,3]
[402451365,1768679480818,-1020.77,0.00018082,3]
[402451366,1768679480827,-500.0,0.00018082,3]
[402451367,1768679480836,-500.0,0.00018082,3]
[402451368,1768679480845,-500.0,0.00018082,3]
[402451369,1768679480854,-500.0,0.00018082,3]
[402451370,1768679480863,-545.06,0.00018082,3]
[402451371,1768679480873,-954.48,0.00018082,3]
[402451372,1768679480883,-811.39,0.00018082,3]
[402451373,1768679480893,-500.0,0.00018082,3]
[402451374,1768679480903,-500.0,0.00018082,3]
[402451375,1768679480913,-500.0,0.00018082,3]
[402451376,1768679480924,-737.68,0.00018082,3]
[402451377,1768679480932,-836.86,0.00018082,3]
[402451378,1768679480942,-1249.71,0.00018082,3]
[402451379,1768679480951,-500.0,0.00018082,3]
[402451380,1768679480960,-1297.98,0.00018082,3]
[402451381,1768679480970,-1200.0,0.00018082,2]
[402451382,1768679480979,-1182.44,0.00018082,3]
[402451383,1768679480988,-500.0,0.00018082,3]
[402451384,1768679480998,-500.0,0.00018082,3]
[402451385,1768679481007,-500.0,0.00018082,3]
[402451386,1768679481016,-509.11,0.00018082,3]
[402451387,1768679481026,-2261.74,0.00018082,3]
[402451388,1768679481036,-237.3142042,0.00018082,3]
[402451389,1768679481046,-1804.58,0.00018082,3]
[402451390,1768679481056,-500.0,0.00018082,3]
[402451391,1768679481065,-500.0,0.00018082,3]
[402451392,1768679481075,-500.0,0.00018082,3]
[402451393,1768679481084,-500.0,0.00018082,3]
[402451394,1768679481094,-500.0,0.00018082,3]
[402451395,1768679481104,-1161.49,0.00018082,3]
[402451396,1768679481114,-579.98,0.00018082,3]
[402451397,1768679481124,-500.0,0.00018082,3]
[402451398,1768679481134,-179.4,0.00018082,2]
[402451399,1768679481143,-646.86,0.00018082,3]
[402451400,1768679481153,-500.0,0.00018082,3]
[402451401,1768679481163,-500.0,0.00018082,3]
[402451402,1768679481172,-971.6,0.00018082,3]
[402451403,1768679481182,-779.46,0.00018082,3]
[402451404,1768679481192,-779.74,0.00018082,3]
[402451405,1768679481203,-549.39,0.00018082,3]
[402451406,1768679481213,-863.36,0.00018082,3]
[402451407,1768679481222,-1141.78,0.00018082,3]
[402451408,1768679481231,-500.0,0.00018082,3]
[402451409,1768679481241,-500.0,0.00018082,3]
[402451410,1768679481254,-1435.49,0.00018082,3]
[402451411,1768679481264,-500.0,0.00018082,3]
[402451412,1768679481273,-794.82,0.00018082,3]
[402451413,1768679481282,-500.0,0.00018082,3]
[402451414,1768679481291,-500.0,0.00018082,3]
[402451415,1768679481300,-758.34,0.00018082,3]
[402451416,1768679481310,-500.0,0.00018082,3]
[402451417,1768679481320,-500.0,0.00018082,3]
[402451418,1768679481330,-1219.11,0.00018082,3]
[402451419,1768679481339,-500.0,0.00018082,3]
[402451420,1768679481348,-500.0,0.00018082,3]
[402451421,1768679481358,-500.0,0.00018082,3]
[402451422,1768679481367,-716.42,0.00018082,3]
[402451423,1768679481377,-182.50051494,0.00018082,3]
[402451425,1768679481386,-500.0,0.00018082,3]
[402451426,1768679481396,-828.42,0.00018082,3]
[402451427,1768679481406,-500.0,0.00018082,3]
[402451428,1768679481415,-1549.77,0.00018082,3]
[402451429,1768679481425,-1973.46,0.00018082,3]
[402451430,1768679481434,-1689.4,0.00018082,3]
[402451431,1768679481444,-1151.7,0.00018082,3]
[402451432,1768679481454,-500.0,0.00018082,3]
[402451433,1768679481464,-1119.45,0.00018082,3]
[402451434,1768679481473,-608.13,0.00018082,3]
[402451435,1768679481482,-1042.67,0.00018082,3]
[402451436,1768679481492,-500.0,0.00018082,3]
[402451437,1768679481501,-500.0,0.00018082,3]
[402451438,1768679481511,-500.0,0.00018082,3]
[402451439,1768679481521,-2245.47,0.00018082,3]
[402451440,1768679481531,-500.0,0.00018082,3]
[402451441,1768679481541,-500.0,0.00018082,3]
[402451442,1768679481550,-500.0,0.00018082,3]
[402451443,1768679481560,-1377.29,0.00018082,3]
[402451444,1768679481570,-611.27,0.00018082,3]
[402451445,1768679481579,-500.0,0.00018082,3]
[402451446,1768679481588,-566.4,0.00018082,3]
[402451447,1768679481597,-500.0,0.00018082,3]
[402451448,1768679481606,-658.43,0.00018082,3]
[402451449,1768679481615,-1008.67,0.00018082,3]
[402451450,1768679481625,-1322.2,0.00018082,3]
[402451451,1768679481633,-500.0,0.00018082,3]
[402451452,1768679481643,-1081.56,0.00018082,3]
[402451453,1768679481652,-500.0,0.00018082,3]